[Event "*** Titled Tuesday Blitz"]
[Site "Chess.com"]
[Date "2021.02.09"]
[Round "10"]
[White "Onischuk_V"]
[Black "GMBenjaminBok"]
[Result "1/2-1/2"]
[WhiteElo "2853"]
[BlackElo "2996"]
[TimeControl "180+1"]
[EndTime "11:57:45 PST"]
[Termination "Game drawn by repetition"]

1. e4 {[%clk 0:02:54.4]} 1... c5 {[%clk 0:03:00.2]} 2. Ne2 {[%clk 0:02:54.3]}
2... d6 {[%clk 0:02:56.2]} 3. g3 {[%clk 0:02:54.4]} 3... g6 {[%clk 0:02:55.5]}
4. Bg2 {[%clk 0:02:54.5]} 4... Bg7 {[%clk 0:02:56]} 5. c3 {[%clk 0:02:54.8]}
5... e5 {[%clk 0:02:39]} 6. d4 {[%clk 0:02:50.7]} 6... cxd4 {[%clk 0:02:39]} 7.
cxd4 {[%clk 0:02:50.7]} 7... exd4 {[%clk 0:02:39.6]} 8. Nxd4 {[%clk 0:02:50.1]}
8... Nf6 {[%clk 0:02:39.4]} 9. Nc3 {[%clk 0:02:49.1]} 9... O-O {[%clk 0:02:39]}
10. O-O {[%clk 0:02:47]} 10... Re8 {[%clk 0:02:38.6]} 11. Re1 {[%clk 0:02:42.3]}
11... Bg4 {[%clk 0:02:26.5]} 12. Qb3 {[%clk 0:02:39.7]} 12... Nc6 {[%clk
0:02:21.7]} 13. Nxc6 {[%clk 0:02:24.1]} 13... bxc6 {[%clk 0:02:22.6]} 14. Bf4
{[%clk 0:02:23.7]} 14... Nh5 {[%clk 0:02:16.7]} 15. Be3 {[%clk 0:02:21.9]} 15...
Qa5 {[%clk 0:02:06.5]} 16. h3 {[%clk 0:02:07.8]} 16... Be6 {[%clk 0:02:05.2]}
17. Qc2 {[%clk 0:02:08.4]} 17... Rab8 {[%clk 0:02:04.8]} 18. Rac1 {[%clk
0:02:04.8]} 18... Nf6 {[%clk 0:01:21.8]} 19. b3 {[%clk 0:02:02.4]} 19... Nd7
{[%clk 0:01:20.5]} 20. Na4 {[%clk 0:02:00.2]} 20... c5 {[%clk 0:01:09.5]} 21.
Red1 {[%clk 0:01:59.5]} 21... c4 {[%clk 0:00:31.5]} 22. bxc4 {[%clk 0:01:54.7]}
22... Rec8 {[%clk 0:00:31.7]} 23. Bf1 {[%clk 0:01:44.4]} 23... Ne5 {[%clk
0:00:31]} 24. c5 {[%clk 0:01:40.5]} 24... dxc5 {[%clk 0:00:19.4]} 25. Nxc5
{[%clk 0:01:35.6]} 25... Rb2 {[%clk 0:00:18.4]} 26. Nb3 {[%clk 0:00:39.2]} 26...
Rbxc2 {[%clk 0:00:12.2]} 27. Nxa5 {[%clk 0:00:38.7]} 27... Rxc1 {[%clk
0:00:12.6]} 28. Rxc1 {[%clk 0:00:38.4]} 28... Rxc1 {[%clk 0:00:12.1]} 29. Bxc1
{[%clk 0:00:38.1]} 29... Bxa2 {[%clk 0:00:12.8]} 30. f4 {[%clk 0:00:35.6]} 30...
Nd7 {[%clk 0:00:09]} 31. Be3 {[%clk 0:00:35.5]} 31... Bc3 {[%clk 0:00:06.8]} 32.
Nc6 {[%clk 0:00:25.5]} 32... a5 {[%clk 0:00:06.6]} 33. Bb5 {[%clk 0:00:26]}
33... Kf8 {[%clk 0:00:03.2]} 34. Nxa5 {[%clk 0:00:24.6]} 34... Nf6 {[%clk
0:00:03.1]} 35. e5 {[%clk 0:00:20.3]} 35... Ne4 {[%clk 0:00:01.9]} 36. Nc4
{[%clk 0:00:15.9]} 36... Nxg3 {[%clk 0:00:02.1]} 37. Nd6 {[%clk 0:00:15.8]}
37... Nf5 {[%clk 0:00:01.7]} 38. Nxf5 {[%clk 0:00:15.5]} 38... gxf5 {[%clk
0:00:02.6]} 39. Kf2 {[%clk 0:00:15.6]} 39... Kg7 {[%clk 0:00:03]} 40. Kg3 {[%clk
0:00:14.9]} 40... Be6 {[%clk 0:00:03.1]} 41. Bd3 {[%clk 0:00:14.3]} 41... Be1+
{[%clk 0:00:03.2]} 42. Kf3 {[%clk 0:00:14]} 42... Bc3 {[%clk 0:00:02.4]} 43. Kf2
{[%clk 0:00:13.9]} 43... Bb4 {[%clk 0:00:02.8]} 44. Bc1 {[%clk 0:00:12.8]} 44...
Ba5 {[%clk 0:00:03.1]} 45. Kg3 {[%clk 0:00:12.8]} 45... Bb6 {[%clk 0:00:03.3]}
46. Bd2 {[%clk 0:00:12.3]} 46... Kg6 {[%clk 0:00:03.8]} 47. Bb4 {[%clk
0:00:12.3]} 47... Bd8 {[%clk 0:00:03.9]} 48. Bf8 {[%clk 0:00:11.9]} 48... Bb6
{[%clk 0:00:03.4]} 49. Be2 {[%clk 0:00:11.8]} 49... Ba5 {[%clk 0:00:03.6]} 50.
h4 {[%clk 0:00:11.4]} 50... Be1+ {[%clk 0:00:03.7]} 51. Kh3 {[%clk 0:00:11.6]}
51... h5 {[%clk 0:00:03.9]} 52. Be7 {[%clk 0:00:11.1]} 52... Bd5 {[%clk
0:00:03.9]} 53. Bg5 {[%clk 0:00:10.7]} 53... Be4 {[%clk 0:00:03.8]} 54. Kh2
{[%clk 0:00:09.7]} 54... Bf2 {[%clk 0:00:03.4]} 55. Kh3 {[%clk 0:00:09.3]} 55...
Be1 {[%clk 0:00:03.6]} 56. Bb5 {[%clk 0:00:08.9]} 56... Bf3 {[%clk 0:00:02.8]}
57. Be8 {[%clk 0:00:07.6]} 57... Kg7 {[%clk 0:00:02.4]} 58. Bd7 {[%clk
0:00:06.7]} 58... Kg6 {[%clk 0:00:02.2]} 59. e6 {[%clk 0:00:06.3]} 59... fxe6
{[%clk 0:00:02.2]} 60. Bxe6 {[%clk 0:00:06.5]} 60... Bg4+ {[%clk 0:00:01.9]} 61.
Kg2 {[%clk 0:00:06.1]} 61... Kg7 {[%clk 0:00:02.3]} 62. Bd7 {[%clk 0:00:06.1]}
62... Bc3 {[%clk 0:00:02.2]} 63. Kf1 {[%clk 0:00:06.2]} 63... Bd4 {[%clk
0:00:02.5]} 64. Ke1 {[%clk 0:00:06]} 64... Be3 {[%clk 0:00:02.9]} 65. Bc6 {[%clk
0:00:05.4]} 65... Bd4 {[%clk 0:00:03.2]} 66. Bd5 {[%clk 0:00:05.6]} 66... Bf6
{[%clk 0:00:03.2]} 67. Kd2 {[%clk 0:00:05.3]} 67... Bd4 {[%clk 0:00:03.1]} 68.
Kd3 {[%clk 0:00:05.5]} 68... Bf2 {[%clk 0:00:03.4]} 69. Kc4 {[%clk 0:00:05.6]}
69... Be2+ {[%clk 0:00:02.7]} 70. Kb4 {[%clk 0:00:05.8]} 70... Bd3 {[%clk
0:00:02.8]} 71. Kc3 {[%clk 0:00:05]} 71... Bb5 {[%clk 0:00:02.8]} 72. Bf3 {[%clk
0:00:04.6]} 72... Be8 {[%clk 0:00:02.7]} 73. Kc4 {[%clk 0:00:04.4]} 73... Bf7+
{[%clk 0:00:03.1]} 74. Kb5 {[%clk 0:00:04.3]} 74... Kg6 {[%clk 0:00:03.7]} 75.
Kc6 {[%clk 0:00:04.1]} 75... Bd4 {[%clk 0:00:04]} 76. Kd6 {[%clk 0:00:04]} 76...
Bc3 {[%clk 0:00:04.4]} 77. Kd7 {[%clk 0:00:03.8]} 77... Bb4 {[%clk 0:00:04.6]}
78. Bc6 {[%clk 0:00:02.9]} 78... Kg7 {[%clk 0:00:04]} 79. Kc7 {[%clk 0:00:03.1]}
79... Bc5 {[%clk 0:00:04.4]} 80. Kd7 {[%clk 0:00:03.5]} 80... Kg6 {[%clk
0:00:04.8]} 81. Bf3 {[%clk 0:00:03.3]} 81... Bb4 {[%clk 0:00:05]} 82. Kc6 {[%clk
0:00:03.8]} 82... Ba3 {[%clk 0:00:05.1]} 83. Bd5 {[%clk 0:00:03.9]} 83... Bxd5+
{[%clk 0:00:04.5]} 84. Kxd5 {[%clk 0:00:04.2]} 84... Bc1 {[%clk 0:00:05]} 85.
Ke6 {[%clk 0:00:04.4]} 85... Be3 {[%clk 0:00:05]} 86. Ke5 {[%clk 0:00:04.7]}
86... Bc1 {[%clk 0:00:05.2]} 87. Ke6 {[%clk 0:00:05.3]} 87... Bb2 {[%clk
0:00:05.8]} 88. Ke7 {[%clk 0:00:04.8]} 88... Bc3 {[%clk 0:00:05.5]} 89. Ke6
{[%clk 0:00:05.3]} 89... Bb4 {[%clk 0:00:05.8]} 90. Ke5 {[%clk 0:00:05.6]} 90...
Bc5 {[%clk 0:00:06.1]} 91. Ke6 {[%clk 0:00:06.1]} 91... Bb6 {[%clk 0:00:06.3]}
92. Ke5 {[%clk 0:00:06.5]} 92... Bc7+ {[%clk 0:00:06.7]} 93. Ke6 {[%clk
0:00:07]} 93... Bb8 {[%clk 0:00:07.2]} 94. Ke7 {[%clk 0:00:07.1]} 94... Ba7
{[%clk 0:00:07.5]} 95. Ke6 {[%clk 0:00:07.6]} 95... Bb6 {[%clk 0:00:07.6]} 96.
Ke5 {[%clk 0:00:07.8]} 96... Ba5 {[%clk 0:00:08]} 97. Ke6 {[%clk 0:00:08.3]}
97... Be1 {[%clk 0:00:08.2]} 98. Ke7 {[%clk 0:00:08.2]} 98... Bc3 {[%clk
0:00:08]} 99. Ke6 {[%clk 0:00:07.4]} 99... Bb2 {[%clk 0:00:08.6]} 100. Ke7
{[%clk 0:00:07.4]} 100... Bc3 {[%clk 0:00:08.5]} 1/2-1/2

[Event "*** Titled Tuesday Blitz"]
[Site "Chess.com"]
[Date "2021.02.09"]
[Round "10"]
[White "Chesswizard_2007"]
[Black "AttilaTurzo"]
[Result "1-0"]
[WhiteElo "2682"]
[BlackElo "2531"]
[TimeControl "180+1"]
[EndTime "11:57:57 PST"]
[Termination "Chesswizard_2007 won on time"]

1. c4 {[%clk 0:03:00.9]} 1... c6 {[%clk 0:03:00.1]} 2. Qa4 {[%clk 0:03:00.4]}
2... d5 {[%clk 0:03:01]} 3. cxd5 {[%clk 0:02:59.4]} 3... Qxd5 {[%clk 0:03:00.2]}
4. Nc3 {[%clk 0:02:58.6]} 4... Qd8 {[%clk 0:02:55.4]} 5. Nf3 {[%clk 0:02:57.2]}
5... Nf6 {[%clk 0:02:49.5]} 6. d4 {[%clk 0:02:55.1]} 6... Bf5 {[%clk 0:02:48.9]}
7. Bg5 {[%clk 0:02:54.2]} 7... Nbd7 {[%clk 0:02:47.1]} 8. e3 {[%clk 0:02:53.1]}
8... e6 {[%clk 0:02:47.3]} 9. Be2 {[%clk 0:02:52]} 9... Be7 {[%clk 0:02:47.6]}
10. O-O {[%clk 0:02:51.9]} 10... h6 {[%clk 0:02:48]} 11. Bh4 {[%clk 0:02:50.6]}
11... O-O {[%clk 0:02:48.5]} 12. Rfd1 {[%clk 0:02:48.3]} 12... Ne4 {[%clk
0:02:43.7]} 13. Bxe7 {[%clk 0:02:47.5]} 13... Qxe7 {[%clk 0:02:44.6]} 14. Nxe4
{[%clk 0:02:47.9]} 14... Bxe4 {[%clk 0:02:44.3]} 15. Rac1 {[%clk 0:02:48.4]}
15... a6 {[%clk 0:02:41.1]} 16. Qb3 {[%clk 0:02:47.7]} 16... c5 {[%clk
0:02:20.2]} 17. dxc5 {[%clk 0:02:44.6]} 17... Nxc5 {[%clk 0:02:19.6]} 18. Qa3
{[%clk 0:02:44.2]} 18... Rac8 {[%clk 0:02:14.2]} 19. Rd4 {[%clk 0:02:29.2]}
19... Bxf3 {[%clk 0:01:43.2]} 20. Bxf3 {[%clk 0:02:30.1]} 20... b6 {[%clk
0:01:43.7]} 21. Rdc4 {[%clk 0:02:18.4]} 21... a5 {[%clk 0:01:43.6]} 22. g3
{[%clk 0:02:13.7]} 22... Qf6 {[%clk 0:01:32]} 23. Kg2 {[%clk 0:02:12.3]} 23...
Rcd8 {[%clk 0:01:32]} 24. Qc3 {[%clk 0:02:04.9]} 24... Qxc3 {[%clk 0:01:28]} 25.
R1xc3 {[%clk 0:02:05.8]} 25... Rd2 {[%clk 0:01:27.9]} 26. b4 {[%clk 0:02:00.7]}
26... axb4 {[%clk 0:01:22.8]} 27. Rxb4 {[%clk 0:02:01.6]} 27... Nd3 {[%clk
0:01:17.1]} 28. Rxd3 {[%clk 0:01:46]} 28... Rxd3 {[%clk 0:01:16.1]} 29. Rxb6
{[%clk 0:01:36.5]} 29... Ra3 {[%clk 0:01:15.7]} 30. Rb2 {[%clk 0:01:37.1]} 30...
Rc8 {[%clk 0:01:11.9]} 31. Bd1 {[%clk 0:01:35.4]} 31... g6 {[%clk 0:01:10.5]}
32. Bb3 {[%clk 0:01:35.9]} 32... Ra7 {[%clk 0:01:04.4]} 33. Rd2 {[%clk
0:01:35.8]} 33... Kf8 {[%clk 0:01:04.4]} 34. h4 {[%clk 0:01:35.5]} 34... h5
{[%clk 0:01:04.3]} 35. Rd4 {[%clk 0:01:35.1]} 35... Ke7 {[%clk 0:01:04.4]} 36.
Kf3 {[%clk 0:01:33.8]} 36... Rd7 {[%clk 0:01:04]} 37. Rb4 {[%clk 0:01:29.3]}
37... Rc5 {[%clk 0:01:03.4]} 38. Ke2 {[%clk 0:01:15.8]} 38... Rcc7 {[%clk
0:00:57.1]} 39. Rb8 {[%clk 0:01:08.2]} 39... Rb7 {[%clk 0:00:56.6]} 40. Ra8
{[%clk 0:01:04.4]} 40... Rd8 {[%clk 0:00:55.1]} 41. Ra4 {[%clk 0:01:02.1]} 41...
Rbd7 {[%clk 0:00:54.5]} 42. Kf3 {[%clk 0:00:59.5]} 42... Rd2 {[%clk 0:00:54.1]}
43. Ra7+ {[%clk 0:00:59.3]} 43... R8d7 {[%clk 0:00:54.3]} 44. Ra4 {[%clk
0:00:54.6]} 44... Rc7 {[%clk 0:00:53.5]} 45. Rf4 {[%clk 0:00:52.5]} 45... Rc5
{[%clk 0:00:52.2]} 46. a4 {[%clk 0:00:42.2]} 46... Rf5 {[%clk 0:00:34.9]} 47.
Bc4 {[%clk 0:00:41.6]} 47... Rxf4+ {[%clk 0:00:32.2]} 48. exf4 {[%clk
0:00:42.5]} 48... Rd4 {[%clk 0:00:31]} 49. Bb5 {[%clk 0:00:42.6]} 49... Rb4
{[%clk 0:00:30.4]} 50. Kg2 {[%clk 0:00:42.2]} 50... Kd6 {[%clk 0:00:30.5]} 51.
Kf3 {[%clk 0:00:41.3]} 51... Rb3+ {[%clk 0:00:29.2]} 52. Kg2 {[%clk 0:00:41]}
52... Kc5 {[%clk 0:00:29.7]} 53. Be8 {[%clk 0:00:41.1]} 53... Rb7 {[%clk
0:00:25.5]} 54. Kf3 {[%clk 0:00:41.2]} 54... Re7 {[%clk 0:00:22.4]} 55. Bb5
{[%clk 0:00:41.1]} 55... Kd4 {[%clk 0:00:22.8]} 56. a5 {[%clk 0:00:39]} 56...
Ra7 {[%clk 0:00:20.4]} 57. a6 {[%clk 0:00:39.5]} 57... Kc5 {[%clk 0:00:20.6]}
58. Bf1 {[%clk 0:00:38.6]} 58... Rd7 {[%clk 0:00:20.1]} 59. Ke3 {[%clk
0:00:35.8]} 59... Rd4 {[%clk 0:00:19.8]} 60. Bg2 {[%clk 0:00:26.9]} 60... Ra4
{[%clk 0:00:19.8]} 61. Bb7 {[%clk 0:00:27.5]} 61... Ra3+ {[%clk 0:00:19.1]} 62.
Ke4 {[%clk 0:00:27.2]} 62... f6 {[%clk 0:00:19]} 63. Bc8 {[%clk 0:00:22.9]}
63... Ra4+ {[%clk 0:00:18.7]} 64. Kf3 {[%clk 0:00:20.1]} 64... Kd6 {[%clk
0:00:18.8]} 65. Bb7 {[%clk 0:00:20.2]} 65... e5 {[%clk 0:00:19.1]} 66. fxe5+
{[%clk 0:00:19.5]} 66... Kxe5 {[%clk 0:00:20]} 67. Kg2 {[%clk 0:00:20.1]} 67...
Ra3 {[%clk 0:00:20.3]} 68. Bc8 {[%clk 0:00:20]} 68... g5 {[%clk 0:00:20.4]} 69.
Kh3 {[%clk 0:00:10.3]} 69... Ra4 {[%clk 0:00:17]} 70. hxg5 {[%clk 0:00:05.4]}
70... fxg5 {[%clk 0:00:17.9]} 71. Bb7 {[%clk 0:00:05.7]} 71... h4 {[%clk
0:00:17.3]} 72. gxh4 {[%clk 0:00:05.7]} 72... Rxh4+ {[%clk 0:00:17.2]} 73. Kg3
{[%clk 0:00:05.4]} 73... Ra4 {[%clk 0:00:18.1]} 74. f3 {[%clk 0:00:05.9]} 74...
Kf5 {[%clk 0:00:18]} 75. Bc8+ {[%clk 0:00:06.3]} 75... Ke5 {[%clk 0:00:18.4]}
76. Bb7 {[%clk 0:00:06.9]} 76... Kf6 {[%clk 0:00:18.1]} 77. Kh3 {[%clk
0:00:06.2]} 77... Kg6 {[%clk 0:00:18]} 78. Kg3 {[%clk 0:00:06.6]} 78... Kh5
{[%clk 0:00:18.2]} 79. Bc8 {[%clk 0:00:07.1]} 79... Ra3 {[%clk 0:00:17.7]} 80.
Kf2 {[%clk 0:00:06.1]} 80... Kh4 {[%clk 0:00:17.6]} 81. Ke2 {[%clk 0:00:04.9]}
81... Kg3 {[%clk 0:00:17.2]} 82. Bb7 {[%clk 0:00:01.7]} 82... Kf4 {[%clk
0:00:16.2]} 83. Kd2 {[%clk 0:00:02.1]} 83... Ke5 {[%clk 0:00:11.9]} 84. Kc2
{[%clk 0:00:02.4]} 84... Kd4 {[%clk 0:00:11.9]} 85. Kb2 {[%clk 0:00:02.7]} 85...
Ra5 {[%clk 0:00:10.3]} 86. Kb3 {[%clk 0:00:03.3]} 86... Kc5 {[%clk 0:00:10.6]}
87. Kc3 {[%clk 0:00:03.3]} 87... Ra3+ {[%clk 0:00:10.3]} 88. Kd2 {[%clk
0:00:03.5]} 88... Kd4 {[%clk 0:00:09.5]} 89. Ke2 {[%clk 0:00:03.5]} 89... Ra2+
{[%clk 0:00:09.3]} 90. Kd1 {[%clk 0:00:03.4]} 90... Kd3 {[%clk 0:00:07.6]} 91.
Kc1 {[%clk 0:00:03.8]} 91... Kc3 {[%clk 0:00:06.7]} 92. Kb1 {[%clk 0:00:04.4]}
92... Ra3 {[%clk 0:00:05]} 93. Bc8 {[%clk 0:00:04.2]} 93... Ra5 {[%clk
0:00:02.2]} 94. Bb7 {[%clk 0:00:03.3]} 94... Rb5+ {[%clk 0:00:01.4]} 95. Kc1
{[%clk 0:00:03.7]} 1-0

[Event "*** Titled Tuesday Blitz"]
[Site "Chess.com"]
[Date "2021.02.09"]
[Round "11"]
[White "XDPS"]
[Black "Zmeeed63"]
[Result "1-0"]
[WhiteElo "2750"]
[BlackElo "2472"]
[TimeControl "180+1"]
[EndTime "12:01:47 PST"]
[Termination "XDPS won by resignation"]

1. d4 {[%clk 0:03:00.9]} 1... Nf6 {[%clk 0:02:59.2]} 2. Bf4 {[%clk 0:03:00.3]}
2... d5 {[%clk 0:02:58.5]} 3. e3 {[%clk 0:03:00]} 3... c5 {[%clk 0:02:57.1]} 4.
Nf3 {[%clk 0:03:00.1]} 4... Nc6 {[%clk 0:02:57.4]} 5. Nbd2 {[%clk 0:02:59.6]}
5... Bg4 {[%clk 0:02:53.5]} 6. c3 {[%clk 0:02:50.8]} 6... e6 {[%clk 0:02:52.9]}
7. Qa4 {[%clk 0:02:47.2]} 7... Bd6 {[%clk 0:02:48.6]} 8. Ne5 {[%clk 0:02:47]}
8... O-O {[%clk 0:02:42.4]} 9. Nxg4 {[%clk 0:02:31.2]} 9... Nxg4 {[%clk
0:02:39]} 10. Bxd6 {[%clk 0:02:31.4]} 10... Qxd6 {[%clk 0:02:39.9]} 11. dxc5
{[%clk 0:02:31.7]} 11... Qxc5 {[%clk 0:02:39.1]} 12. Qxg4 {[%clk 0:02:30.9]} 1-0

[Event "*** Titled Tuesday Blitz"]
[Site "Chess.com"]
[Date "2021.02.09"]
[Round "11"]
[White "elohunter1999"]
[Black "SanchezKelvin"]
[Result "1-0"]
[WhiteElo "2639"]
[BlackElo "2434"]
[TimeControl "180+1"]
[EndTime "12:03:25 PST"]
[Termination "elohunter1999 won by resignation"]

1. d4 {[%clk 0:03:00.9]} 1... Nf6 {[%clk 0:02:58.9]} 2. c4 {[%clk 0:03:00.5]}
2... e6 {[%clk 0:02:59]} 3. Nc3 {[%clk 0:02:59.5]} 3... c5 {[%clk 0:02:59.2]} 4.
d5 {[%clk 0:02:59.1]} 4... exd5 {[%clk 0:03:00.1]} 5. cxd5 {[%clk 0:02:59.5]}
5... d6 {[%clk 0:02:58.5]} 6. Nf3 {[%clk 0:02:57.7]} 6... g6 {[%clk 0:02:56.9]}
7. g3 {[%clk 0:02:57.8]} 7... Bg7 {[%clk 0:02:56.5]} 8. Bg2 {[%clk 0:02:58.5]}
8... O-O {[%clk 0:02:57.3]} 9. O-O {[%clk 0:02:59.1]} 9... Re8 {[%clk
0:02:57.4]} 10. Bf4 {[%clk 0:02:57.9]} 10... Ne4 {[%clk 0:02:56.1]} 11. Nxe4
{[%clk 0:02:57.5]} 11... Rxe4 {[%clk 0:02:57]} 12. Nd2 {[%clk 0:02:57.2]} 12...
Rb4 {[%clk 0:02:57.1]} 13. a3 {[%clk 0:02:37.9]} 13... Rxf4 {[%clk 0:02:55.6]}
14. gxf4 {[%clk 0:02:37.4]} 14... Bxb2 {[%clk 0:02:56.3]} 15. Rb1 {[%clk
0:02:34.7]} 15... Bxa3 {[%clk 0:02:54]} 16. Nc4 {[%clk 0:02:32.2]} 16... Bb4
{[%clk 0:02:52.5]} 17. e4 {[%clk 0:02:31.1]} 17... b5 {[%clk 0:02:51.1]} 18. Ne3
{[%clk 0:02:20.2]} 18... a5 {[%clk 0:02:43.5]} 19. e5 {[%clk 0:02:19.6]} 19...
c4 {[%clk 0:02:41.9]} 20. Rxb4 {[%clk 0:02:02.9]} 20... axb4 {[%clk 0:02:41.3]}
21. Qd4 {[%clk 0:02:03.8]} 21... Nd7 {[%clk 0:02:29.3]} 22. e6 {[%clk
0:02:02.6]} 22... Nc5 {[%clk 0:02:19.2]} 23. Ng4 {[%clk 0:02:00.6]} 23... fxe6
{[%clk 0:02:02.3]} 24. Nh6+ {[%clk 0:02:00.3]} 24... Kf8 {[%clk 0:02:00.3]} 25.
Qh8+ {[%clk 0:02:01.2]} 25... Ke7 {[%clk 0:02:00.6]} 26. Qg7+ {[%clk 0:02:02.1]}
1-0

[Event "*** Titled Tuesday Blitz"]
[Site "Chess.com"]
[Date "2021.02.09"]
[Round "11"]
[White "Eternauta2400"]
[Black "Darius321"]
[Result "0-1"]
[WhiteElo "2357"]
[BlackElo "2293"]
[TimeControl "180+1"]
[EndTime "12:03:31 PST"]
[Termination "Darius321 won by resignation"]

1. e4 {[%clk 0:02:58.2]} 1... c5 {[%clk 0:02:58.1]} 2. Nf3 {[%clk 0:02:58.2]}
2... g6 {[%clk 0:02:57.9]} 3. d4 {[%clk 0:02:56.8]} 3... cxd4 {[%clk 0:02:58.8]}
4. Nxd4 {[%clk 0:02:57.5]} 4... Bg7 {[%clk 0:02:59]} 5. c4 {[%clk 0:02:57.4]}
5... Nc6 {[%clk 0:02:59.2]} 6. Be3 {[%clk 0:02:57.3]} 6... Nf6 {[%clk
0:02:59.1]} 7. Nc3 {[%clk 0:02:56]} 7... Qa5 {[%clk 0:02:59.7]} 8. Qc2 {[%clk
0:02:37.6]} 8... Ng4 {[%clk 0:02:40.8]} 9. Be2 {[%clk 0:02:29.5]} 9... Nxe3
{[%clk 0:02:34.6]} 10. fxe3 {[%clk 0:02:30.4]} 10... Nxd4 {[%clk 0:02:33.8]} 11.
exd4 {[%clk 0:02:29.2]} 11... Bxd4 {[%clk 0:02:33.4]} 12. Qd2 {[%clk 0:02:24.8]}
12... Bxc3 {[%clk 0:02:27.8]} 13. bxc3 {[%clk 0:02:23.9]} 13... d6 {[%clk
0:02:25.4]} 14. O-O {[%clk 0:02:23.4]} 14... O-O {[%clk 0:02:22.9]} 15. Qh6
{[%clk 0:02:10.5]} 15... Qxc3 {[%clk 0:02:13.4]} 16. Rab1 {[%clk 0:02:03.2]}
16... b6 {[%clk 0:02:11.1]} 17. Rb3 {[%clk 0:01:51.9]} 17... Qd4+ {[%clk
0:02:07.8]} 18. Kh1 {[%clk 0:01:50.2]} 18... Be6 {[%clk 0:02:00.1]} 19. Rh3
{[%clk 0:01:45.4]} 19... Bxh3 {[%clk 0:01:54.8]} 0-1

[Event "*** Titled Tuesday Blitz"]
[Site "Chess.com"]
[Date "2021.02.09"]
[Round "11"]
[White "Trickster_Pony"]
[Black "bylavochka"]
[Result "1/2-1/2"]
[WhiteElo "1511"]
[BlackElo "2079"]
[TimeControl "180+1"]
[EndTime "12:04:24 PST"]
[Termination "Game drawn by agreement"]

1. c4 {[%clk 0:03:00.9]} 1... Nf6 {[%clk 0:02:57.3]} 2. g3 {[%clk 0:02:58.8]}
2... g6 {[%clk 0:02:58.2]} 3. Bg2 {[%clk 0:02:58.3]} 3... Bg7 {[%clk 0:02:59.1]}
4. Nc3 {[%clk 0:02:57]} 4... O-O {[%clk 0:02:59]} 5. Nf3 {[%clk 0:02:52]} 5...
c6 {[%clk 0:02:59.9]} 6. O-O {[%clk 0:02:50.5]} 6... d5 {[%clk 0:03:00.1]} 7.
cxd5 {[%clk 0:02:49.1]} 7... cxd5 {[%clk 0:03:01]} 8. d4 {[%clk 0:02:49]} 8...
Nc6 {[%clk 0:03:00.9]} 9. b3 {[%clk 0:02:42.7]} 9... Ne4 {[%clk 0:03:00.2]} 10.
Bb2 {[%clk 0:02:34.7]} 10... Bf5 {[%clk 0:02:48.2]} 11. e3 {[%clk 0:02:23.8]}
11... Rc8 {[%clk 0:02:45.1]} 12. Nxe4 {[%clk 0:02:16.6]} 12... Bxe4 {[%clk
0:02:40.9]} 13. Nd2 {[%clk 0:02:12.5]} 13... Bxg2 {[%clk 0:02:36.5]} 14. Kxg2
{[%clk 0:02:13.4]} 14... e5 {[%clk 0:02:36.5]} 15. Nf3 {[%clk 0:02:04.6]} 15...
e4 {[%clk 0:02:08.9]} 16. Ne5 {[%clk 0:01:59]} 16... Qe7 {[%clk 0:01:50.1]} 17.
Nxc6 {[%clk 0:01:56.7]} 17... Rxc6 {[%clk 0:01:51]} 18. Rc1 {[%clk 0:01:55]}
18... Rfc8 {[%clk 0:01:49.8]} 19. Qd2 {[%clk 0:01:54.5]} 19... R8c7 {[%clk
0:01:30.3]} 20. Rxc6 {[%clk 0:01:53.3]} 20... Rxc6 {[%clk 0:01:30.1]} 21. Rc1
{[%clk 0:01:52.8]} 21... Qc7 {[%clk 0:01:28.6]} 22. Rxc6 {[%clk 0:01:52.6]}
22... Qxc6 {[%clk 0:01:29.5]} 23. Qc3 {[%clk 0:01:49.7]} 23... Qxc3 {[%clk
0:01:21.1]} 24. Bxc3 {[%clk 0:01:50.6]} 24... Kf8 {[%clk 0:01:19.1]} 25. Bb4+
{[%clk 0:01:50.4]} 25... Ke8 {[%clk 0:01:17.8]} 26. a4 {[%clk 0:01:49.4]} 26...
Kd7 {[%clk 0:01:17.3]} 27. a5 {[%clk 0:01:48.7]} 1/2-1/2

[Event "*** Titled Tuesday Blitz"]
[Site "Chess.com"]
[Date "2021.02.09"]
[Round "11"]
[White "djano"]
[Black "kakorrhaphiophobie"]
[Result "1-0"]
[WhiteElo "2478"]
[BlackElo "2336"]
[TimeControl "180+1"]
[EndTime "12:04:53 PST"]
[Termination "djano won by resignation"]

1. c4 {[%clk 0:03:00.9]} 1... f5 {[%clk 0:02:59.6]} 2. g4 {[%clk 0:03:00.1]}
2... fxg4 {[%clk 0:02:55.4]} 3. h3 {[%clk 0:03:00.5]} 3... g3 {[%clk 0:02:56]}
4. fxg3 {[%clk 0:03:01.4]} 4... e5 {[%clk 0:02:53.1]} 5. Nc3 {[%clk 0:02:59.3]}
5... Nc6 {[%clk 0:02:53.1]} 6. Bg2 {[%clk 0:02:56.5]} 6... Qg5 {[%clk
0:02:47.2]} 7. Ne4 {[%clk 0:02:55.7]} 7... Qg6 {[%clk 0:02:42.1]} 8. e3 {[%clk
0:02:44.4]} 8... Nf6 {[%clk 0:02:37.7]} 9. Nxf6+ {[%clk 0:02:44.2]} 9... gxf6
{[%clk 0:02:32.7]} 10. Ne2 {[%clk 0:02:39.3]} 10... Nb4 {[%clk 0:02:21.4]} 11.
O-O {[%clk 0:02:39.1]} 11... Nc2 {[%clk 0:02:01.4]} 12. Rb1 {[%clk 0:02:36.7]}
12... Nxe3 {[%clk 0:02:01.9]} 13. dxe3 {[%clk 0:02:37.2]} 13... Qxb1 {[%clk
0:02:02.1]} 14. Rxf6 {[%clk 0:02:24]} 14... Be7 {[%clk 0:02:01.2]} 15. Nc3
{[%clk 0:02:21.3]} 15... Qa1 {[%clk 0:01:56]} 16. Qh5+ {[%clk 0:02:16.5]} 16...
Kd8 {[%clk 0:01:51]} 17. Rf1 {[%clk 0:02:15.9]} 17... a5 {[%clk 0:01:37.4]} 18.
Nd5 {[%clk 0:02:14.4]} 18... Qxa2 {[%clk 0:01:20.7]} 19. Nxe7 {[%clk 0:02:11.3]}
19... Qxc4 {[%clk 0:01:01.8]} 20. Nd5 {[%clk 0:01:54.1]} 20... d6 {[%clk
0:00:55.2]} 21. Qg5+ {[%clk 0:01:49.8]} 21... Kd7 {[%clk 0:00:55.7]} 22. Qe7+
{[%clk 0:01:48.4]} 22... Kc6 {[%clk 0:00:52.8]} 23. Qxc7+ {[%clk 0:01:47.9]}
23... Kb5 {[%clk 0:00:53.1]} 24. Qb6+ {[%clk 0:01:47.1]} 24... Ka4 {[%clk
0:00:50.8]} 25. Nc3+ {[%clk 0:01:46]} 1-0